[Event "2nd Turkish League 2017"]
[Site "Konya"]
[Date "2017.07.20"]
[Round "6"]
[White "Sahinoglu, Hakan"]
[Black "Ilhan, Huseyin"]
[Result "1-0"]
[ECO "E87"]
[WhiteElo "1835"]
[BlackElo "1750"]
[Annotator "NA"]
[PlyCount "129"]
[EventType "team-tourn"]
[EventCountry "TUR"]
[SourceTitle "playchess.com"]
[Source "ChessBase"]
[SourceQuality "1"]
[TimeControl "5400+30"]

1. d4 {[%emt 0:00:30]} Nf6 {[%emt 0:01:00]} 2. c4 {[%emt 0:00:30]} g6 {[%emt 0:00:30]} 3. Nc3 {[%emt 0:00:00]} Bg7 {[%emt 0:03:30]} 4. e4 {[%emt 0:00:00]} d6 {[%emt 0:00:30]} 5. f3 {[%emt 0:00:00]} O-O {[%emt 0:00:30]} 6. Be3 {[%emt 0:00:00]} e5 {[%emt 0:01:30]} 7. d5 {[%emt 0:00:00]} h5 $146 {[%emt 0:06:30] E87: King's Indian: Sämisch: 6...e5 7 d5} ({Predecessor:} 7... c6 8. Qd2 cxd5 9. cxd5 a6 10. Bd3 Nh5 11. Nge2 Nd7 12. O-O f5 13. exf5 gxf5 14. Bxf5 Rxf5 15. g4 Nb6 16. b3 Rxf3 17. Rxf3 Bxg4 18. Rf2 Nd7 19. Ne4 Ndf6 20. Nxf6+ Nxf6 21. Ng3 Qe8 {1-0 (55) Morozevich,A (2748)-Grischuk,A (2764) Beijing 2012}) 8. Qd2 {[%emt 0:01:00]} a5 {[%emt 0:00:00]} 9. Bd3 {[%emt 0:01:30]} Na6 {[%emt 0:01:00]} 10. Nge2 {[%emt 0:00:30]} Nc5 {[%emt 0:08:30]} 11. Bc2 {[%emt 0:00:30]} b6 {[%emt 0:06:30]} 12. O-O {[%emt 0:00:30]} Ne8 {[%emt 0:00:30]} 13. a3 {[%emt 0:04:30]} f5 {[%emt 0:05:30]} 14. exf5 {[%emt 0:01:30]} gxf5 {[%emt 0:07:30]} 15. f4 {[%emt 0:02:30]} e4 {[%emt 0:01:30]} 16. b4 {[%emt 0:02:30]} Nb7 {[%emt 0:03:30]} 17. Nd4 {[%emt 0:04:30]} Qe7 {[%emt 0:05:30]} 18. Nc6 {[%emt 0:02:30]} Qf7 {[%emt 0:00:30]} 19. Bd4 {[%emt 0:01:30]} Bxd4+ {[%emt 0:03:30]} 20. Nxd4 {[%emt 0:01:30]} Bd7 {[%emt 0:03:30]} 21. Bb3 {[%emt 0:03:30]} Kh7 {[%emt 0:05:30]} 22. Nce2 {[%emt 0:09:30]} Nf6 {[%emt 0:09:30]} 23. Nc2 {[%emt 0:06:30]} Rg8 {[%emt 0:02:30]} 24. Ned4 {[%emt 0:01:30]} Rg6 {[%emt 0:01:30]} 25. Ne3 {[%emt 0:00:30]} Rag8 {[%emt 0:01:30]} 26. Rf2 {[%emt 0:06:30]} Ng4 {[%emt 0:08:58]} 27. Nxg4 {[%emt 0:00:30]} Rxg4 {[%emt 0:00:48]} 28. Re1 {[%emt 0:07:30]} h4 {[%emt 0:02:30]} 29. Re3 {[%emt 0:03:30]} axb4 {[%emt 0:03:48]} 30. axb4 {[%emt 0:00:30]} Ra8 {[%emt 0:00:20]} 31. Qb2 {[%emt 0:03:30]} Qg7 {[%emt 0:00:44]} 32. Bd1 {[%emt 0:07:30]} Rg6 {[%emt 0:00:26]} 33. Nb3 {[%emt 0:01:30]} Qxb2 {[%emt 0:03:21]} 34. Rxb2 {[%emt 0:00:00]} Kg7 {[%emt 0:02:05]} 35. Ree2 {[%emt 0:01:00]} Kf6 {[%emt 0:00:26]} 36. Ra2 {[%emt 0:01:30]} Rgg8 {[%emt 0:00:02]} 37. Nd4 {[%emt 0:00:30]} e3 {[%emt 0:02:27]} 38. Kf1 {[%emt 0:01:30]} Rxa2 {[%emt 0:00:38]} 39. Rxa2 {[%emt 0:00:00]} Re8 {[%emt 0:00:22]} 40. Bf3 {[%emt 0:01:00]} h3 {[%emt 0:00:49]} 41. g3 {[%emt 0:00:30]} e2+ {[%emt 0:00:27]} 42. Nxe2 {[%emt 0:01:30]} Re3 {[%emt 0:00:30]} 43. Kf2 {[%emt 0:00:30]} Rb3 {[%emt 0:00:01]} 44. Ra7 {[%emt 0:00:00]} Nd8 {[%emt 0:00:58]} 45. Rxc7 {[%emt 0:00:00]} Ke7 {[%emt 0:00:00]} 46. Nd4 {[%emt 0:00:30]} Rb2+ {[%emt 0:00:53]} 47. Be2 {[%emt 0:00:30]} Nf7 {[%emt 0:00:30]} 48. Nxf5+ {[%emt 0:00:30]} Kd8 $18 {[%emt 0:00:00]} 49. Rxd7+ {[%emt 0:06:48]} Kxd7 {[%emt 0:00:00]} 50. b5 {[%emt 0:00:12]} Rb1 {[%emt 0:00:40]} 51. Bh5 {[%emt 0:05:19]} Rb2+ {[%emt 0:00:27]} 52. Kf3 {[%emt 0:00:24]} Rxh2 {[%emt 0:01:00]} 53. Bxf7 {[%emt 0:00:30]} Rc2 {[%emt 0:00:03]} 54. Be6+ {[%emt 0:01:23]} Kd8 {[%emt 0:00:30]} 55. g4 {[%emt 0:00:00]} h2 {[%emt 0:00:51]} 56. Ng3 {[%emt 0:00:04]} Rc3+ {[%emt 0:00:26]} 57. Kg2 {[%emt 0:00:01]} Rxg3+ {[%emt 0:00:00]} 58. Kxh2 {[%emt 0:00:02]} Rc3 {[%emt 0:01:57]} 59. g5 {[%emt 0:00:15]} Rxc4 {[%emt 0:00:01]} 60. g6 {[%emt 0:02:44]} Rc7 {[%emt 0:00:18]} 61. f5 {[%emt 0:03:01]} Rg7 {[%emt 0:00:33]} 62. Bf7 {[%emt 0:00:06]} Ke7 {[%emt 0:01:12]} 63. Kg3 {[%emt 0:00:04]} Rxf7 {[%emt 0:00:33]} 64. gxf7 {[%emt 0:00:30]} Kxf7 {[%emt 0:00:00]} 65. Kg4 {[%emt 0:00:00]} 1-0

[Event "2nd Turkish League 2017"]
[Site "Konya"]
[Date "2017.07.20"]
[Round "6"]
[White "Turkmen, Huseyin Nafizhan"]
[Black "Ozdemir, Ali"]
[Result "1-0"]
[ECO "B21"]
[WhiteElo "1817"]
[BlackElo "1762"]
[Annotator "NA"]
[PlyCount "105"]
[EventType "team-tourn"]
[EventCountry "TUR"]
[SourceTitle "playchess.com"]
[Source "ChessBase"]
[SourceQuality "1"]
[TimeControl "5400+30"]

1. e4 {[%emt 0:00:30]} c5 {[%emt 0:01:00]} 2. d4 {[%emt 0:00:00]} cxd4 {[%emt 0:00:30]} 3. Nf3 {[%emt 0:00:00]} g6 {[%emt 0:03:30]} 4. c3 {[%emt 0:00:00]} d3 {[%emt 0:01:30]} 5. Bxd3 {[%emt 0:00:00]} Bg7 {[%emt 0:00:00]} 6. O-O {[%emt 0:00:30]} d6 {[%emt 0:01:00]} 7. Re1 {[%emt 0:01:30]} Nf6 {[%emt 0:00:30]} 8. Nbd2 {[%emt 0:01:30]} O-O {[%emt 0:00:30]} 9. Nf1 {[%emt 0:01:30]} Nc6 {[%emt 0:01:30]} 10. h3 {[%emt 0:02:30]} b6 {[%emt 0:11:30]} 11. Bf4 {[%emt 0:06:30]} Bb7 {[%emt 0:04:30]} 12. Qd2 {[%emt 0:03:30]} Re8 {[%emt 0:02:30]} 13. Bh6 {[%emt 0:08:30]} Bh8 {[%emt 0:02:30]} 14. Rad1 {[%emt 0:03:30]} Qc7 {[%emt 0:06:30]} 15. Qg5 {[%emt 0:08:30]} Nd7 {[%emt 0:11:30]} 16. Nh4 {[%emt 0:06:30]} Nce5 {[%emt 0:05:30]} 17. Bc2 {[%emt 0:07:30]} Nc4 {[%emt 0:12:30]} 18. Bb3 {[%emt 0:04:30]} Bf6 {[%emt 0:03:30]} 19. Qg3 {[%emt 0:00:30]} Nf8 {[%emt 0:07:30]} 20. Bc1 {[%emt 0:02:30]} Kh8 {[%emt 0:00:30]} 21. Nh2 {[%emt 0:05:30]} Rad8 {[%emt 0:13:02]} 22. Ng4 {[%emt 0:05:30]} Bg7 {[%emt 0:00:14]} 23. Nh6 {[%emt 0:07:30]} e5 {[%emt 0:01:32]} 24. Nf3 {[%emt 0:05:10]} b5 {[%emt 0:02:13]} 25. Qh4 {[%emt 0:03:01]} f6 {[%emt 0:02:02]} 26. Ng4 {[%emt 0:02:42]} Qf7 {[%emt 0:01:04]} 27. Ne3 {[%emt 0:03:04]} g5 {[%emt 0:03:44]} 28. Qg3 {[%emt 0:00:17]} Bxe4 {[%emt 0:00:36]} 29. Nxc4 {[%emt 0:00:35]} bxc4 {[%emt 0:00:07]} 30. Ba4 {[%emt 0:00:01]} Bxf3 {[%emt 0:00:23]} 31. Bxe8 {[%emt 0:00:11]} Qxe8 {[%emt 0:00:35]} 32. Qxf3 {[%emt 0:00:09]} Qe6 {[%emt 0:00:17]} 33. Qd5 {[%emt 0:00:48]} Kg8 {[%emt 0:01:00]} 34. Re4 {[%emt 0:00:51]} Qxd5 {[%emt 0:01:08]} 35. Rxd5 {[%emt 0:02:18]} Ne6 {[%emt 0:00:40]} 36. Rxc4 {[%emt 0:00:24]} Nf4 {[%emt 0:00:34]} 37. Bxf4 {[%emt 0:00:49]} gxf4 {[%emt 0:00:02]} 38. Rc6 {[%emt 0:00:38]} Bf8 {[%emt 0:00:30]} 39. Rc7 {[%emt 0:00:00]} Rb8 {[%emt 0:00:56]} 40. b3 {[%emt 0:00:00]} Re8 {[%emt 0:00:36]} 41. f3 {[%emt 0:01:48]} f5 {[%emt 0:00:13]} 42. Rxa7 {[%emt 0:01:15]} e4 {[%emt 0:00:38]} 43. Kf2 {[%emt 0:00:24]} Be7 {[%emt 0:00:37]} 44. fxe4 {[%emt 0:01:53]} Bh4+ {[%emt 0:00:38]} 45. Kf3 {[%emt 0:01:13]} fxe4+ {[%emt 0:00:14]} 46. Kg4 {[%emt 0:00:00]} h5+ {[%emt 0:01:10]} 47. Kxh4 {[%emt 0:00:23]} e3 {[%emt 0:00:00]} 48. Rg5+ {[%emt 0:00:34]} Kh8 {[%emt 0:00:20]} 49. Rxh5+ {[%emt 0:00:30]} Kg8 {[%emt 0:00:30]} 50. Rhh7 {[%emt 0:00:00]} e2 {[%emt 0:00:00]} 51. Rag7+ {[%emt 0:00:19]} Kf8 {[%emt 0:00:21]} 52. Rh8+ {[%emt 0:00:30]} Kxg7 {[%emt 0:00:30]} 53. Rxe8 {[%emt 0:00:00]} 1-0

[Event "2nd Turkish League 2017"]
[Site "Konya"]
[Date "2017.07.20"]
[Round "6"]
[White "Simsek, Meltem"]
[Black "Keskin, Suara"]
[Result "1-0"]
[ECO "A24"]
[WhiteElo "1752"]
[BlackElo "1716"]
[Annotator "NA"]
[PlyCount "83"]
[EventType "team-tourn"]
[EventCountry "TUR"]
[SourceTitle "playchess.com"]
[Source "ChessBase"]
[SourceQuality "1"]
[TimeControl "5400+30"]

1. c4 {[%emt 0:00:30]} Nf6 {[%emt 0:01:00]} 2. Nc3 {[%emt 0:00:00]} g6 {[%emt 0:00:00]} 3. g3 {[%emt 0:00:00]} Bg7 {[%emt 0:00:00]} 4. Bg2 {[%emt 0:00:30]} d6 {[%emt 0:00:30]} 5. Nf3 {[%emt 0:01:30]} O-O {[%emt 0:00:30]} 6. O-O {[%emt 0:00:00]} c6 {[%emt 0:00:30]} 7. Rb1 {[%emt 0:00:00]} e5 {[%emt 0:00:30]} 8. d3 {[%emt 0:00:30]} a5 {[%emt 0:03:30]} 9. b3 {[%emt 0:01:30]} h6 {[%emt 0:02:30]} 10. Bb2 {[%emt 0:01:30]} Na6 {[%emt 0:15:30]} 11. e3 {[%emt 0:02:30]} Nh7 {[%emt 0:06:30]} 12. Re1 {[%emt 0:01:30]} f5 {[%emt 0:05:30]} 13. d4 {[%emt 0:02:30]} e4 {[%emt 0:05:30]} 14. Nd2 {[%emt 0:01:30]} Nb4 {[%emt 0:00:30]} 15. Bf1 {[%emt 0:00:30]} g5 {[%emt 0:23:30]} 16. a3 {[%emt 0:00:30]} Nd3 {[%emt 0:06:30]} 17. Bxd3 {[%emt 0:04:30]} exd3 {[%emt 0:02:30]} 18. f4 {[%emt 0:00:30]} Re8 {[%emt 0:02:30]} 19. Nf1 {[%emt 0:00:30]} gxf4 {[%emt 0:01:30]} 20. gxf4 {[%emt 0:00:30]} Qh4 {[%emt 0:01:30]} 21. Qxd3 {[%emt 0:01:30]} Nf6 {[%emt 0:01:11]} 22. Re2 {[%emt 0:11:30]} Kh7 {[%emt 0:04:03]} 23. Rg2 {[%emt 0:01:30]} Ng4 {[%emt 0:01:27]} 24. Nd1 {[%emt 0:00:30]} Rg8 {[%emt 0:00:38]} 25. Bc3 {[%emt 0:00:30]} Bf6 {[%emt 0:03:32]} 26. Qe2 {[%emt 0:06:30]} Be6 {[%emt 0:01:35]} 27. Be1 {[%emt 0:00:30]} Qh5 {[%emt 0:03:11]} 28. Ng3 {[%emt 0:02:30]} Qh3 {[%emt 0:00:18]} 29. Qd3 {[%emt 0:03:30]} Kh8 {[%emt 0:06:45]} 30. d5 {[%emt 0:14:30]} cxd5 {[%emt 0:01:39]} 31. cxd5 {[%emt 0:00:30]} Bd7 {[%emt 0:00:00]} 32. Rc1 {[%emt 0:01:30]} Raf8 {[%emt 0:00:41]} 33. Rc7 {[%emt 0:00:30]} Rf7 {[%emt 0:00:17]} 34. Rxb7 {[%emt 0:06:30]} Rfg7 {[%emt 0:00:35]} 35. Qf1 {[%emt 0:01:30]} Kh7 {[%emt 0:00:57]} 36. Rc2 {[%emt 0:03:30]} Qh4 {[%emt 0:00:16]} 37. h3 {[%emt 0:02:30]} Nxe3 {[%emt 0:00:38]} 38. Nxe3 {[%emt 0:00:30]} Bd4 {[%emt 0:00:31]} 39. Kh1 {[%emt 0:08:30]} Bxe3 {[%emt 0:00:30]} 40. Rcc7 {[%emt 0:00:00]} Be8 {[%emt 0:00:27]} 41. Rxg7+ {[%emt 0:00:00]} Rxg7 {[%emt 0:00:30]} 42. Rxg7+ {[%emt 0:00:00]} 1-0

[Event "2nd Turkish League 2017"]
[Site "Konya"]
[Date "2017.07.20"]
[Round "6"]
[White "Ceylan, Sezer"]
[Black "Cannesar, Rad"]
[Result "1/2-1/2"]
[ECO "B60"]
[WhiteElo "1714"]
[BlackElo "1979"]
[Annotator "NA"]
[PlyCount "89"]
[EventType "team-tourn"]
[EventCountry "TUR"]
[SourceTitle "playchess.com"]
[Source "ChessBase"]
[SourceQuality "1"]
[TimeControl "5400+30"]

1. e4 {[%emt 0:00:30]} c5 {[%emt 0:01:00]} 2. Nf3 {[%emt 0:00:30]} d6 {[%emt 0:00:30]} 3. d4 {[%emt 0:00:30]} cxd4 {[%emt 0:00:30]} 4. Nxd4 {[%emt 0:00:00]} Nf6 {[%emt 0:00:00]} 5. Nc3 {[%emt 0:00:00]} Nc6 {[%emt 0:00:00]} 6. Bg5 {[%emt 0:00:00]} Bd7 {[%emt 0:02:30]} 7. Bc4 {[%emt 0:01:00]} Qb6 {[%emt 0:03:30]} 8. Bxf6 {[%emt 0:01:30]} gxf6 {[%emt 0:00:00]} 9. Nb3 {[%emt 0:14:30]} Ne5 {[%emt 0:26:00]} 10. Nd5 {[%emt 0:02:30]} Qd8 {[%emt 0:02:30]} 11. Be2 {[%emt 0:00:30]} Bh6 {[%emt 0:05:30]} 12. f4 {[%emt 0:01:30]} Ng6 {[%emt 0:00:30]} 13. g3 {[%emt 0:02:30]} f5 {[%emt 0:05:30]} 14. Qd4 {[%emt 0:05:30]} O-O {[%emt 0:04:30]} 15. h4 {[%emt 0:09:30]} Bg7 {[%emt 0:01:30]} 16. Qe3 {[%emt 0:00:30]} e6 {[%emt 0:07:30]} 17. Nc3 {[%emt 0:00:30]} Bxc3+ {[%emt 0:01:30]} 18. Qxc3 {[%emt 0:01:30]} fxe4 {[%emt 0:00:30]} 19. h5 {[%emt 0:00:30]} Ne7 {[%emt 0:00:30]} 20. Rh4 {[%emt 0:00:30]} f6 {[%emt 0:02:30]} 21. O-O-O {[%emt 0:04:30]} Nf5 {[%emt 0:08:30]} 22. Rh2 {[%emt 0:07:30]} d5 {[%emt 0:08:17]} 23. g4 {[%emt 0:00:30]} Rc8 {[%emt 0:00:44]} 24. Qd2 {[%emt 0:00:30]} Ng3 {[%emt 0:02:29]} 25. Rg1 {[%emt 0:02:30]} Nxe2+ {[%emt 0:02:25]} 26. Rxe2 {[%emt 0:02:30]} Qb6 {[%emt 0:05:21]} 27. Ree1 {[%emt 0:03:30]} Ba4 {[%emt 0:01:45]} 28. Kb1 {[%emt 0:01:30]} Bxb3 {[%emt 0:00:04]} 29. cxb3 {[%emt 0:00:30]} Rc7 {[%emt 0:02:18]} 30. g5 {[%emt 0:00:30]} f5 {[%emt 0:01:42]} 31. h6 {[%emt 0:00:30]} d4 {[%emt 0:01:53]} 32. g6 {[%emt 0:02:30]} e3 {[%emt 0:00:26]} 33. Qd3 {[%emt 0:03:30]} Rd7 {[%emt 0:00:46]} 34. b4 {[%emt 0:03:30]} Qc6 {[%emt 0:00:53]} 35. gxh7+ {[%emt 0:00:30]} Kxh7 {[%emt 0:01:21]} 36. Rg7+ {[%emt 0:00:00]} Rxg7 {[%emt 0:00:36]} 37. hxg7 {[%emt 0:00:00]} Rd8 {[%emt 0:00:00]} 38. Qf1 {[%emt 0:03:30]} Qe4+ {[%emt 0:00:10]} 39. Ka1 {[%emt 0:00:00]} Kxg7 {[%emt 0:01:04]} 40. Rc1 {[%emt 0:01:00]} Rd7 {[%emt 0:00:05]} 41. Qg1+ {[%emt 0:00:30]} Kf7 {[%emt 0:00:02]} 42. Rc8 {[%emt 0:01:30]} Ke7 {[%emt 0:00:30]} 43. Qg7+ {[%emt 0:00:30]} Kd6 {[%emt 0:00:00]} 44. Qf8+ {[%emt 0:00:30]} Re7 {[%emt 0:00:00]} 45. Qd8+ {[%emt 0:02:30]} 1/2-1/2

[Event "2nd Turkish League 2017"]
[Site "Konya"]
[Date "2017.07.20"]
[Round "6"]
[White "Koc, Dogan Mehmet"]
[Black "Kerem, Halil Ozgun"]
[Result "0-1"]
[ECO "A17"]
[WhiteElo "1712"]
[BlackElo "2074"]
[Annotator "NA"]
[PlyCount "94"]
[EventType "team-tourn"]
[EventCountry "TUR"]
[SourceTitle "playchess.com"]
[Source "ChessBase"]
[SourceQuality "1"]
[TimeControl "5400+30"]

1. d4 {[%emt 0:00:30]} Nf6 {[%emt 0:01:00]} 2. c4 {[%emt 0:00:30]} e6 {[%emt 0:02:30]} 3. g3 {[%emt 0:01:30]} d5 {[%emt 0:00:30]} 4. cxd5 {[%emt 0:00:30]} exd5 {[%emt 0:00:30]} 5. Bg2 {[%emt 0:00:30]} Bd6 {[%emt 0:01:30]} 6. Nc3 {[%emt 0:00:30]} c6 {[%emt 0:00:00]} 7. Bg5 {[%emt 0:01:30]} h6 {[%emt 0:00:00]} 8. Bxf6 {[%emt 0:00:30]} Qxf6 {[%emt 0:00:30]} 9. Nf3 {[%emt 0:00:00]} O-O {[%emt 0:00:30]} 10. O-O {[%emt 0:00:00]} Bf5 {[%emt 0:00:30]} 11. a3 {[%emt 0:01:30]} Nd7 {[%emt 0:05:30]} 12. b4 {[%emt 0:02:30]} Qe7 {[%emt 0:01:30]} 13. Qb3 {[%emt 0:03:30]} a6 {[%emt 0:16:30]} 14. Na4 {[%emt 0:12:30]} Qxe2 {[%emt 0:05:30]} 15. Nc5 {[%emt 0:01:30]} Bxc5 {[%emt 0:09:30]} 16. bxc5 {[%emt 0:00:30]} b5 {[%emt 0:07:30]} 17. cxb6 {[%emt 0:03:30]} Rab8 {[%emt 0:00:30]} 18. b7 {[%emt 0:01:30]} Qb5 {[%emt 0:01:30]} 19. Qc3 {[%emt 0:02:30]} Qxb7 {[%emt 0:01:30]} 20. Rfc1 {[%emt 0:04:30]} Rfc8 {[%emt 0:00:30]} 21. Nh4 {[%emt 0:03:30]} Be6 {[%emt 0:01:30]} 22. f4 {[%emt 0:00:30]} Nf6 {[%emt 0:01:30]} 23. Bf1 {[%emt 0:03:30]} Ne4 {[%emt 0:05:30]} 24. Qd3 {[%emt 0:04:30]} Qb2 {[%emt 0:03:30]} 25. Be2 {[%emt 0:01:30]} Rb3 {[%emt 0:01:30]} 26. Rcb1 {[%emt 0:03:30]} Rxd3 {[%emt 0:00:30]} 27. Rxb2 {[%emt 0:00:30]} Rxd4 {[%emt 0:00:00]} 28. Bxa6 {[%emt 0:04:30]} Rc7 {[%emt 0:02:00]} 29. a4 {[%emt 0:02:30]} Nc5 {[%emt 0:02:30]} 30. Nf3 {[%emt 0:03:30]} Rxa4 {[%emt 0:00:30]} 31. Rxa4 {[%emt 0:00:30]} Nxa4 {[%emt 0:00:30]} 32. Rb8+ {[%emt 0:01:30]} Kh7 {[%emt 0:00:00]} 33. Bd3+ {[%emt 0:00:30]} g6 {[%emt 0:00:00]} 34. Ne5 {[%emt 0:00:30]} Nc5 {[%emt 0:02:30]} 35. Kf2 {[%emt 0:02:30]} Nd7 {[%emt 0:01:30]} 36. Nxd7 {[%emt 0:00:30]} Bxd7 {[%emt 0:00:30]} 37. Kf3 {[%emt 0:00:30]} h5 {[%emt 0:00:30]} 38. Ke3 {[%emt 0:00:30]} c5 {[%emt 0:00:00]} 39. Rb6 {[%emt 0:00:00]} Be6 {[%emt 0:00:00]} 40. Rb1 {[%emt 0:00:00]} d4+ {[%emt 0:01:30]} 41. Kd2 {[%emt 0:00:30]} c4 {[%emt 0:00:30]} 42. Be4 {[%emt 0:00:00]} Ra7 {[%emt 0:00:00]} 43. Rb5 {[%emt 0:01:00]} Ra2+ {[%emt 0:00:00]} 44. Kc1 {[%emt 0:00:00]} Rxh2 {[%emt 0:02:30]} 45. Bd5 {[%emt 0:00:00]} Bxd5 {[%emt 0:00:00]} 46. Rxd5 {[%emt 0:00:30]} d3 {[%emt 0:00:00]} 47. Rd4 {[%emt 0:00:30]} Rc2+ {[%emt 0:00:30]} 0-1

[Event "2nd Turkish League 2017"]
[Site "Konya"]
[Date "2017.07.20"]
[Round "6"]
[White "Kahya, Gizem"]
[Black "Bayrak, Asli"]
[Result "0-1"]
[ECO "C47"]
[WhiteElo "1634"]
[BlackElo "2056"]
[Annotator "NA"]
[PlyCount "88"]
[EventType "team-tourn"]
[EventCountry "TUR"]
[SourceTitle "playchess.com"]
[Source "ChessBase"]
[SourceQuality "1"]
[TimeControl "5400+30"]

1. e4 {[%emt 0:00:30]} e5 {[%emt 0:01:00]} 2. Nf3 {[%emt 0:00:30]} Nc6 {[%emt 0:00:00]} 3. Nc3 {[%emt 0:00:00]} Nf6 {[%emt 0:03:00]} 4. Be2 {[%emt 0:00:00]} d5 {[%emt 0:12:30]} 5. exd5 {[%emt 0:03:30]} Nxd5 {[%emt 0:00:30]} 6. d3 {[%emt 0:01:30] C47: Scotch Four Knights and Four Knights with 4 g3} (6. O-O Nxc3 7. bxc3 e4 8. Ne1 Bd6 9. f3 Bf5 10. fxe4 Bxe4 11. Bf3 Qe7 12. d4 O-O 13. Rb1 b6 14. Nd3 Rae8 15. Bf4 Bxf4 16. Nxf4 Na5 17. Bxe4 Qxe4 18. Qd3 c6 19. a4 Re7 20. h3 Rfe8 21. Kh2 h6 {½-½ (21) Nisipeanu,L (2669)-Dubov,D (2644) Gjakova 2016}) 6... Be7 {[%emt 0:10:30]} 7. O-O {[%emt 0:06:30]} Be6 {[%emt 0:00:00]} 8. a3 {[%emt 0:00:30]} O-O {[%emt 0:03:00]} 9. Bd2 {[%emt 0:16:30]} f5 {[%emt 0:09:30]} 10. Nxd5 {[%emt 0:06:30]} Bxd5 {[%emt 0:00:00]} 11. Bc3 {[%emt 0:01:30]} Bf6 $146 {[%emt 0:02:00]} ({Predecessor:} 11... Qd6 12. d4 exd4 13. Nxd4 Rad8 {0-1 (34) Gaudet,R-Johnson,R WCCF email 2000}) 12. h3 {[%emt 0:02:30]} Qe8 {[%emt 0:03:30]} 13. Nh2 {[%emt 0:03:30]} Rd8 {[%emt 0:02:30]} 14. Qe1 {[%emt 0:01:30]} Qg6 {[%emt 0:02:30]} 15. Bf3 {[%emt 0:01:30]} e4 {[%emt 0:00:30]} 16. dxe4 {[%emt 0:01:30]} Bxc3 {[%emt 0:00:30]} 17. Qxc3 {[%emt 0:02:30]} fxe4 {[%emt 0:01:30]} 18. Be2 {[%emt 0:00:30]} e3 {[%emt 0:07:30]} 19. f3 {[%emt 0:05:30]} Be6 {[%emt 0:00:00]} 20. Bc4 {[%emt 0:07:30]} Rd2 {[%emt 0:07:00]} 21. Bxe6+ {[%emt 0:12:30]} Qxe6 {[%emt 0:00:30]} 22. Ng4 {[%emt 0:00:30]} Nd4 {[%emt 0:00:30]} 23. Qxe3 {[%emt 0:00:30]} Ne2+ {[%emt 0:07:30]} 24. Kh2 {[%emt 0:04:30]} Qd6+ {[%emt 0:00:30]} 25. Qe5 {[%emt 0:00:33]} Qxe5+ {[%emt 0:02:30]} ({Of course not} 25... Rxc2 $6 26. Qxd6 cxd6 27. Ne3 $11) 26. Nxe5 {[%emt 0:00:30]} Nf4 {[%emt 0:02:30]} 27. Rg1 {[%emt 0:01:27]} Rf5 {[%emt 0:03:26]} 28. Nd3 {[%emt 0:01:37]} Nxd3 {[%emt 0:06:30]} 29. cxd3 {[%emt 0:01:28]} Rxf3 {[%emt 0:00:04]} ({Of course not} 29... Rxd3 30. Rge1 $11) 30. Rac1 {[%emt 0:03:07]} c6 {[%emt 0:00:08]} 31. Kh1 {[%emt 0:11:41]} Rfxd3 $19 {[%emt 0:02:03]} 32. Rc3 {[%emt 0:00:18]} Rxc3 {[%emt 0:00:50]} 33. bxc3 {[%emt 0:00:30]} Rd3 {[%emt 0:00:30]} 34. Rb1 {[%emt 0:00:30]} b6 {[%emt 0:00:30]} 35. Rb3 {[%emt 0:00:30]} Kf7 {[%emt 0:01:42]} 36. a4 {[%emt 0:00:32]} Ke6 {[%emt 0:01:42]} 37. a5 {[%emt 0:02:29]} b5 {[%emt 0:00:08]} 38. Kg1 {[%emt 0:01:10]} Kd5 {[%emt 0:00:08]} 39. Kf2 {[%emt 0:00:30]} Kc4 {[%emt 0:00:25]} 40. Rb4+ {[%emt 0:00:00]} Kxc3 {[%emt 0:00:30]} 41. Re4 {[%emt 0:00:00]} Rd7 {[%emt 0:00:05]} 42. a6 {[%emt 0:00:53]} b4 {[%emt 0:01:20]} 43. Re8 {[%emt 0:00:07]} b3 {[%emt 0:01:26]} 44. Rc8 {[%emt 0:00:37]} Rd6 {[%emt 0:01:05]} 0-1

[Event "2nd Turkish League 2017"]
[Site "Konya"]
[Date "2017.07.20"]
[Round "6"]
[White "Ilkbahar, Nimet Seray"]
[Black "Baloglu, Dila"]
[Result "1-0"]
[ECO "B07"]
[WhiteElo "1618"]
[BlackElo "1379"]
[Annotator "NA"]
[PlyCount "23"]
[EventType "team-tourn"]
[EventCountry "TUR"]
[SourceTitle "playchess.com"]
[Source "ChessBase"]
[SourceQuality "1"]
[TimeControl "5400+30"]

1. e4 {[%emt 0:00:30]} d6 {[%emt 0:01:00]} 2. d4 {[%emt 0:00:00]} Nf6 {[%emt 0:00:30]} 3. Nd2 {[%emt 0:00:00]} g6 {[%emt 0:00:00]} 4. Ngf3 {[%emt 0:00:30]} Bg7 {[%emt 0:00:00]} 5. Be2 {[%emt 0:00:30]} O-O {[%emt 0:02:30]} 6. O-O {[%emt 0:00:00]} Nbd7 {[%emt 0:00:30]} 7. a4 {[%emt 0:00:00]} c5 {[%emt 0:03:30]} 8. c3 {[%emt 0:02:30]} Re8 {[%emt 0:05:30]} 9. Qc2 {[%emt 0:02:30]} Qc7 {[%emt 0:07:30]} 10. Qb3 {[%emt 0:02:30]} e6 {[%emt 0:05:30]} 11. Re1 {[%emt 0:13:30]} Rb8 {[%emt 0:17:30]} 12. Nc4 {[%emt 1:11:09]} 1-0

[Event "2nd Turkish League 2017"]
[Site "Konya"]
[Date "2017.07.20"]
[Round "6"]
[White "Catal, Uktenur"]
[Black "Ozsoy, Damla"]
[Result "1-0"]
[ECO "D02"]
[WhiteElo "1613"]
[BlackElo "1490"]
[Annotator "NA"]
[PlyCount "83"]
[EventType "team-tourn"]
[EventCountry "TUR"]
[SourceTitle "playchess.com"]
[Source "ChessBase"]
[SourceQuality "1"]
[TimeControl "5400+30"]

1. d4 {[%emt 0:00:30]} d5 {[%emt 0:01:00]} 2. Nf3 {[%emt 0:01:30]} Nf6 {[%emt 0:00:30]} 3. Bf4 {[%emt 0:00:30]} c5 {[%emt 0:00:30]} 4. e3 {[%emt 0:00:00]} Nc6 {[%emt 0:00:00]} 5. c3 {[%emt 0:00:00]} Qb6 {[%emt 0:01:00]} 6. Qb3 {[%emt 0:00:30]} c4 {[%emt 0:00:00]} 7. Qc2 {[%emt 0:00:00]} Bf5 {[%emt 0:00:00]} 8. Qc1 {[%emt 0:00:00]} h6 {[%emt 0:00:30]} 9. h3 {[%emt 0:00:00]} e6 {[%emt 0:00:30]} 10. Nbd2 {[%emt 0:00:00]} Qd8 {[%emt 0:01:30]} 11. Be2 {[%emt 0:02:30]} Bd6 {[%emt 0:02:30]} 12. Bxd6 {[%emt 0:01:30]} Qxd6 {[%emt 0:00:30]} 13. b3 {[%emt 0:00:30]} b5 {[%emt 0:01:30]} 14. a4 {[%emt 0:00:30]} a6 {[%emt 0:00:30]} 15. axb5 {[%emt 0:00:00]} Ne7 {[%emt 0:03:30]} 16. bxc4 {[%emt 0:01:00]} dxc4 {[%emt 0:03:30]} 17. Nxc4 {[%emt 0:00:00]} Qc7 {[%emt 0:04:30]} 18. Rxa6 {[%emt 0:02:00]} Rxa6 {[%emt 0:03:30]} 19. bxa6 {[%emt 0:00:00]} O-O {[%emt 0:00:30]} 20. O-O {[%emt 0:00:00]} Ned5 {[%emt 0:05:30]} 21. Nfd2 {[%emt 0:01:30]} Ra8 {[%emt 0:05:30]} 22. Qa3 {[%emt 0:00:30]} Bg6 {[%emt 0:07:30]} 23. Ra1 {[%emt 0:01:30]} Nd7 {[%emt 0:06:30]} 24. Rc1 {[%emt 0:16:30]} Nb8 {[%emt 0:20:30]} 25. Ne5 {[%emt 0:02:30]} Bh7 {[%emt 0:01:30]} 26. e4 {[%emt 0:22:30]} Nf6 {[%emt 0:05:30]} 27. Bd3 {[%emt 0:14:30]} Qc8 {[%emt 0:04:30]} 28. Qe7 {[%emt 0:04:30]} Qf8 {[%emt 0:01:30]} 29. Qxf8+ {[%emt 0:00:30]} Kxf8 {[%emt 0:00:00]} 30. Ra1 {[%emt 0:00:00]} Ke7 {[%emt 0:01:02]} 31. f3 {[%emt 0:00:00]} Ne8 {[%emt 0:01:04]} 32. Nb3 {[%emt 0:01:30]} f6 {[%emt 0:01:36]} 33. Ng4 {[%emt 0:00:30]} Nc7 {[%emt 0:00:22]} 34. Nc5 {[%emt 0:00:00]} Bg6 {[%emt 0:00:12]} 35. Ne3 {[%emt 0:01:00]} Be8 {[%emt 0:01:03]} 36. Nc4 {[%emt 0:01:30]} Bd7 {[%emt 0:02:52]} 37. a7 {[%emt 0:00:30]} Nc6 {[%emt 0:00:48]} 38. Nb6 {[%emt 0:00:00]} Rd8 {[%emt 0:00:28]} 39. Ncxd7 {[%emt 0:00:00]} Rxd7 {[%emt 0:00:12]} 40. Nxd7 {[%emt 0:00:30]} Kxd7 {[%emt 0:00:35]} 41. a8=Q {[%emt 0:00:30]} Nxa8 {[%emt 0:00:30]} 42. Rxa8 {[%emt 0:00:00]} 1-0